Cogmind - Beta 15 @@@ ROGUE MODE // 2025.06.09 @ 23:23:22 Player: Zaros426 Result: Core destroyed Performance ------------- Evolutions (4) 2000 Regions Visited (9) 1800 Robots Destroyed (109) 545 Value Destroyed (2909) 2909 Prototype IDs (36) 720 Alien Tech Used (0) 0 Bonus (3596) 3596 TOTAL SCORE: 11570 Bonus ------- High Alert Combat Kills 102 Follower Combat Kills 599 Entered DSFs 500 Delivered SUBCON Basin 2000 Registered with UFD 300 Met Optimus in HQ 500 Friendly Fire -405 Cogmind --------- Core Integrity 0/850 Matter 176/300 Energy 172/515 System Corruption 39% Temperature Critical (740) Movement Treading (165) Location -6/DSF Parts ------- > --- POWER (2) -------- Reinforced Deuterium Engine Antimatter Reactor > --- PROPULSION (5) --- Armored Treads (fused) Medium Treads Medium Treads Heavy Treads > --- UTILITY (6) ------ High-capacity Storage Unit Enhanced Optical Array Advanced Shield Generator Authchip [Armor] > --- WEAPON (2) ------- Cooled Proton Cannon Gravity Flail > --- INVENTORY (20) --- Armored Treads Energy Well (350) Deep Structural Scanner Experimental Terrain Scanner Experimental Utility Shielding Experimental Utility Shielding Hardened Medium Armor Plating Damper Plating Enhanced Gauss Cannon Enhanced Gauss Cannon Enhanced Gauss Cannon Enhanced Gauss Cannon Peak State ------------ > --- POWER ------------ Light Fission Core Light Fission Core > --- PROPULSION ------- Heavy Treads Nuclear Pulse Thruster Nuclear Pulse Thruster Nuclear Pulse Thruster > --- UTILITY ---------- Damper Plating Advanced Shield Generator System Purifier > --- WEAPON ----------- Cooled Proton Cannon Gravity Flail > --- INVENTORY -------- Antimatter Reactor Energy Well Deep Structural Scanner Experimental Terrain Scanner Heavy Flak Cannon [Rating: 95] Favorites ----------- Power Meta Core Engine Ion Engine Power Core Meta Core Reactor Antimatter Reactor Propulsion Compact Wheel Treads Light Treads Wheel Compact Wheel Hover Unit Backup Propulsion III Flight Unit Nuclear Pulse Thruster Utility Huge Storage Unit Device Seismic Detector Storage Huge Storage Unit Processor Tech Extrapolator Hackware Improved Hacking Suite Protection Scrap Shield Weapon Spread Laser Energy Gun Spread Laser Energy Cannon Subdweller Beam Cannon Ballistic Gun Subdweller Machine Gun Ballistic Cannon Heavy Flak Cannon Launcher Rocket Launcher Impact Weapon Gravity Flail Slashing Weapon Makeshift Sword Special Melee Weapon Datajack Build | -11 -10 -10 -10 -9 -9 -6 -6 -6 -6 ------- Run | Yrd Mat Min Sub Rec Scr Fac Was Fac DSF Slots Evolved 8 | . . . . . . 8 . . . Power 1 | . . . . . . 1 . . . Propulsion 3 | . . . . . . 3 . . . Utility 4 | . . . . . . 4 . . . Weapon . | . . . . . . . . . . Parts Attached 118 | 7 10 1 25 3 5 39 18 . 10 Power 13 | 1 2 . 4 . . 2 3 . 1 Engine 9 | 1 2 . 3 . . 2 . . 1 Core 3 | . . . 1 . . . 2 . . Reactor 1 | . . . . . . . 1 . . Propulsion 35 | 2 . 1 5 3 2 14 4 . 4 Treads 20 | 2 . 1 1 . . 11 1 . 4 Leg . | . . . . . . . . . . Wheel 12 | . . . 4 3 2 3 . . . Hover . | . . . . . . . . . . Flight 3 | . . . . . . . 3 . . Utility 45 | 2 3 . 5 . 2 19 9 . 5 Device 17 | 1 1 . 1 . 1 8 4 . 1 Storage 6 | 1 2 . 1 . . . 1 . 1 Processor 4 | . . . . . . 2 1 . 1 Hackware 3 | . . . . . . 2 . . 1 Protection 15 | . . . 3 . 1 7 3 . 1 Artifact . | . . . . . . . . . . Weapon 25 | 2 5 . 11 . 1 4 2 . . Energy Gun 6 | 1 3 . 2 . . . . . . Energy Cannon 4 | . . . 2 . . 1 1 . . Ballistic Gun 4 | 1 . . 3 . . . . . . Ballistic Cannon 3 | . . . . . . 3 . . . Launcher 4 | . 2 . 2 . . . . . . Special Weapon . | . . . . . . . . . . Impact Weapon 2 | . . . 1 . . . 1 . . Slashing Weapon 1 | . . . 1 . . . . . . Piercing Weapon . | . . . . . . . . . . Special Melee Weapon 1 | . . . . . 1 . . . . Unidentified Prototypes 4 | . . . . . . . 3 . 1 Corrupted Parts 2 | . . . . . . . . . 2 System Corruption 11 | . . . . . . . . . 11 Parts Lost 45 | . . . 9 . . 35 1 . . Power 5 | . . . 2 . . 3 . . . Propulsion 20 | . . . 3 . . 17 . . . Utility 14 | . . . 2 . . 11 1 . . Weapon 6 | . . . 2 . . 4 . . . Highest Loss Streak 19 | . . . 4 . . 19 1 . . To Critical Strikes . | . . . . . . . . . . Average Backups 14 | 2 8 19 13 10 23 21 4 2 5 Power . | . . . . 1 . . . . . Propulsion 1 | . . . . 2 4 2 . . . Utility 7 | . 4 10 6 2 11 12 3 1 3 Weapon 4 | 1 3 6 5 3 3 2 1 1 1 Tool/Special . | . . . . . . . . . . Unused Backups 49 | . 4 1 7 3 13 14 2 . 5 Power . | . . . . . . . . . . Propulsion 3 | . . . . . 3 . . . . Utility 26 | . 1 1 5 2 8 6 2 . 1 Weapon 16 | . 3 . 2 1 2 4 . . 4 Tool/Special 4 | . . . . . . 4 . . . Average Slot Usage (%) 80 | . 99 100 72 75 80 79 64 86 84 Engine 5 | . 14 14 5 . . 4 2 . 4 Core 4 | . . . 2 10 10 4 8 6 1 Treads 10 | . 27 28 8 4 . 12 5 6 17 Wheel 11 | . . . 7 21 29 15 . . . Flight 1 | . . . . . . . 17 20 8 Device 6 | . 13 14 7 . 1 8 3 20 13 Storage 9 | . 14 14 9 10 10 4 . 6 6 Protection 6 | . . . 5 10 9 6 12 6 7 Energy Gun 8 | . 19 28 11 . . . . . . Energy Cannon 4 | . . . 3 11 8 3 3 6 6 Ballistic Gun 1 | . 4 . 3 . . . . . . Launcher 1 | . 3 . 3 . . 1 . . . Impact Weapon 1 | . . . 2 . . . 5 6 6 Slashing Weapon 3 | . . . 2 8 10 2 . . . Peak Build Rating 95 | 7 12 14 48 48 39 89 95 84 91 Average Rating 32 | 5 9 13 18 45 33 68 76 84 78 On Entrance 31 | . 7 12 13 48 30 38 2 84 84 Naked Turns 41 | . . . . . . 15 26 . . Heaviest Build 187 | 15 54 52 114 120 114 187 89 57 101 Greatest Support 150 | 40 40 40 40 48 48 150 70 70 146 Greatest Overweight (x) 16 | . 16 1 16 7 6 6 3 . . Average Overweight (x) 1 | . . . 3 2 1 2 . . . Largest Inventory Capacity 25 | 8 20 20 25 25 25 25 5 5 20 Average Capacity 19 | 7 17 19 16 25 25 24 5 5 12 Most Carried 25 | 3 15 20 25 25 25 25 5 5 15 Average Carried 17 | 2 8 19 15 24 23 23 4 5 8 Final Capacity 25 | 8 15 20 25 25 25 5 5 5 20 Final Carried 25 | 3 15 18 25 15 25 5 5 5 15 Class Distribution -------------------- 61% | Mutant 18% | Subdweller-Mutant 10% | Scavenger-Mutant 6% | Derelict-Mutant Dominant Class ---------------- Mutant | -10/Materials Mutant | -10/Mines Mutant | -10/Subcaves Subdweller-Mutant | -9/Recycling Mutant | -9/Scraptown Derelict-Mutant | -6/Factory Scavenger-Mutant | -6/Waste Scavenger-Mutant | -6/Factory Scavenger-Mutant | -6/DSF Resources | -11 -10 -10 -10 -9 -9 -6 -6 -6 -6 ----------- Run | Yrd Mat Min Sub Rec Scr Fac Was Fac DSF Matter Collected 2788 | 330 312 40 640 60 60 692 476 . 178 Remotely . | . . . . . . . . . . Salvage Created 4065 | 311 689 279 281 291 . 1862 133 . 219 Parts 212 | 32 46 14 22 9 . 86 1 . 2 Haulers Intercepted 1 | . 1 . . . . . . . . Recyclers Shooed 8 | . 1 1 . 1 . 5 . . . Parts Field Recycled . | . . . . . . . . . . Retrieved Matter . | . . . . . . . . . . Parts Self-Destructed 24 | . . . 24 . . . . . . Prevented . | . . . . . . . . . . Kills | -11 -10 -10 -10 -9 -9 -6 -6 -6 -6 ------- Run | Yrd Mat Min Sub Rec Scr Fac Was Fac DSF Combat Hostiles Destroyed 57 | . 11 2 14 . . 30 . . . Melee 2 | . . . . . . 2 . . . Guns 17 | . 10 2 5 . . . . . . Cannons 17 | . . . . . . 17 . . . AOE 19 | . 1 . 9 . . 9 . . . Classes Destroyed 16 | 3 5 . 3 . . 4 1 . . Worker 15 | 2 7 2 . . . 4 . . . Builder 8 | . 2 3 . . . 3 . . . Tunneler 12 | 9 1 1 . . . 1 . . . Hauler 1 | . 1 . . . . . . . . Recycler 10 | 1 2 2 . 3 . 2 . . . Turret 1 | . . . 1 . . . . . . Watcher 3 | . 2 . . . . 1 . . . Swarmer 15 | . 5 . 3 . . 7 . . . Grunt 22 | . 6 2 . . . 14 . . . Duelist 1 | . . . . . . 1 . . . Specialist 5 | . . . . . . 5 . . . Hunter 1 | . . . . . . 1 . . . Programmer 2 | . . . . . . 2 . . . Artisan 1 | . . . 1 . . . . . . Subdweller 11 | . . . 11 . . . . . . Martyr 2 | . . . . . . . 2 . . Best Kill Streak 7 | 6 6 2 3 2 . 7 . . . Combat Bots Only 5 | . 3 2 3 . . 5 . . . Max Kills in Single Turn 3 | 1 1 1 2 1 . 3 1 . . Gunslinging . | . . . . . . . . . . Exploded 3 | . 1 . 2 . . 3 . . . Melee 1 | . . . . . . 1 . . . Uniques/NPCs Destroyed . | . . . . . . . . . . Combat | -11 -10 -10 -10 -9 -9 -6 -6 -6 -6 -------- Run | Yrd Mat Min Sub Rec Scr Fac Was Fac DSF Hostile Shots Fired 736 | . 39 5 68 2 . 621 1 . . Missed 194 | . 7 . 19 . . 168 . . . Hits 542 | . 32 5 49 2 . 453 1 . . Melee 15 | . . . . . . 14 1 . . Projectile 527 | . 32 5 49 2 . 439 . . . AOE 2 | . . . . . . 2 . . . Critical Strikes 14 | . . . 2 . . 12 . . . Part Disruptions 8 | . . . . . . 8 . . . Damage Taken 9859 | . 427 67 1154 27 . 8012 36 . 136 Core 1172 | . 68 10 171 . . 751 36 . 136 Absorbed by Shields . | . . . . . . . . . . Ignored by Resistances 97 | . . . . . . 97 . . . Regen/Repaired (Parts) 14 | . . . . . . . 14 . . Core Remaining (%) 50 | 100 . . . . . . . . . Volleys Fired 254 | 20 60 19 47 . . 105 . . 3 Largest 2 | 2 2 2 2 . . 2 . . 1 Hottest 160 | 70 130 130 130 . . 160 . . 40 Shots Fired 416 | 40 115 38 63 . . 157 . . 3 Gun 222 | 40 110 38 34 . . . . . . Cannon 138 | . . . 1 . . 134 . . 3 Launcher 56 | . 5 . 28 . . 23 . . . Special . | . . . . . . . . . . Kinetic 85 | 20 29 . 14 . . 22 . . . Thermal 272 | 20 81 38 21 . . 112 . . . Explosive 20 | . 5 . 15 . . . . . . Electromagnetic 39 | . . . 13 . . 23 . . 3 Robot Hit Streak 15 | 6 13 9 15 . . 8 . . 3 Robot Miss Streak 6 | 2 6 5 4 . . 6 . . . Penetration Max . | . . . . . . . . . . Secondary Targets 2 | . 1 . 1 . . . . . . Max Gunslinging Chain 1 | . 1 . 1 . . . . . . Shots Hit Robots 317 | 26 76 35 43 7 1 119 2 . 8 Core Hits 233 | 12 61 44 39 4 . 73 . . . Critical Kills 2 | . 1 . . . . 1 . . . Critical Parts Destroyed . | . . . . . . . . . . Critical Strikes 9 | 1 2 . . . . 5 . . 1 Burn 2 | 1 1 . . . . . . . . Meltdown 1 | . . . . . . 1 . . . Destroy 1 | . 1 . . . . . . . . Blast 1 | . . . . . . 1 . . . Corrupt 1 | . . . . . . . . . 1 Sever 3 | . . . . . . 3 . . . Melee Attacks 113 | . . . 41 17 1 47 2 . 5 Impact 46 | . . . 39 . . . 2 . 5 Slashing 65 | . . . 2 17 . 46 . . . Piercing . | . . . . . . . . . . Sneak Attacks 10 | . . . . 3 1 4 2 . . Combat Hostiles . | . . . . . . . . . . Follow-up Attacks . | . . . . . . . . . . Damage Inflicted 10494 | 342 1135 411 1938 435 . 5456 205 . 572 Guns 2318 | 342 968 411 597 . . . . . . Cannons 2712 | . . . . . . 2594 . . 118 Explosions 3479 | . 167 . 1279 . . 2033 . . . Melee 1985 | . . . 62 435 . 829 205 . 454 Ramming . | . . . . . . . . . . Kinetic 986 | 192 197 . 229 . . 368 . . . Thermal 4507 | 150 771 411 386 . . 2789 . . . Explosive 1746 | . 167 . 1112 . . 467 . . . Electromagnetic 1270 | . . . 149 . . 1003 . . 118 Impact 721 | . . . 62 . . . 205 . 454 Slashing 1264 | . . . . 435 . 829 . . . Piercing . | . . . . . . . . . . Highest Corruption 39 | . . . . . . 30 30 28 39 Average Corruption 21 | . . . . . . 12 29 28 32 Corruption Purged 2 | . . . . . . . 2 . . Corruption Blocked . | . . . . . . . . . . Effects 121 | . . . . . . 55 51 1 14 Message Errors 34 | . . . . . . 14 18 . 2 Matter Fused 27 | . . . . . . 9 13 . 5 Heat Flow Errors 14 | . . . . . . 5 6 . 3 Energy Discharges 10 | . . . . . . 5 5 . . Parts Rejected 2 | . . . . . . 2 . . . Parts Fused 3 | . . . . . . 2 . . 1 Data Loss (minor) 12 | . . . . . . 4 5 1 2 Data Loss (major) 6 | . . . . . . 4 2 . . Misfires 2 | . . . . . . 2 . . . Alerts 2 | . . . . . . . 1 . 1 Misdirections 6 | . . . . . . 5 1 . . Weapon Failures 3 | . . . . . . 3 . . . Overload Shots . | . . . . . . . . . . Overflow Damage 580 | . 30 . 69 83 . 228 119 . 51 Projectiles 12 | . . . . . . 1 . . 11 Explosions 248 | . 30 . 69 . . 149 . . . Melee 320 | . . . . 83 . 78 119 . 40 Knockbacks 5 | . . . . . . 4 1 . . Impact 1 | . . . . . . . 1 . . Kinetic 3 | . . . . . . 3 . . . Secondary 1 | . . . . . . 1 . . . Self-Inflicted Damage 163 | . . . 116 . . 47 . . . Shots 9 | . . . 5 . . 4 . . . Rammed 1 | . . . . . . 1 . . . Targets Rammed 1 | . . . . . . 1 . . . Kicked . | . . . . . . . . . . Crushed . | . . . . . . . . . . Highest Temperature 740 | 54 234 240 272 . . 419 436 . 740 Average Temperature 109 | 18 62 69 45 . . 114 153 . 206 Received Heat Transfer 3067 | . 90 39 458 9 . 2471 . . . Effects 19 | . . . . . . 3 3 . 13 Shutdowns 3 | . . . . . . 1 2 . . Energy Bleed 4 | . . . . . . 1 1 . 2 Interference 4 | . . . . . . 1 . . 3 Matter Decay 2 | . . . . . . . . . 2 Damage (minor) 1 | . . . . . . . . . 1 Damage (major) 4 | . . . . . . . . . 4 Damage (core) 1 | . . . . . . . . . 1 Siege Activations . | . . . . . . . . . . Martial Activations . | . . . . . . . . . . Shielding Activations . | . . . . . . . . . . Robots Disrupted . | . . . . . . . . . . Combat Hostiles . | . . . . . . . . . . Robots Corrupted 6 | . . . 1 . . 1 2 . 2 Combat Hostiles 1 | . . . . . . 1 . . . Parts Fried 3 | . . . . . . 1 1 . 1 Impact Corruptions 3 | . . . . . . . 2 . 1 Robots Melted 1 | . . . . . . 1 . . . Combat Hostiles 1 | . . . . . . 1 . . . Parts Melted 10 | . 4 . . . . 6 . . . Heat Transferred 6851 | 518 1625 525 515 . . 3668 . . . Parts Sabotaged 2 | . . . . . . 2 . . . Parts Stolen . | . . . . . . . . . . Parts Stripped . | . . . . . . . . . . Power Chain Reactions 4 | . . . 1 . . 3 . . . Alert | -11 -10 -10 -10 -9 -9 -6 -6 -6 -6 ------- Run | Yrd Mat Min Sub Rec Scr Fac Was Fac DSF Maximum Alert Level 3 | . . . . . . 3 1 . 1 Low Security (%) 87 | 100 100 100 . 100 . 56 85 100 43 Level 1 5 | . . . . . . 9 14 . 56 Level 2 4 | . . . . . . 19 . . . Level 3 3 | . . . . . . 14 . . . Level 4 . | . . . . . . . . . . Level 5 . | . . . . . . . . . . High Security . | . . . . . . . . . . Max Security . | . . . . . . . . . . Sterilizations 1 | . . . . . . . . . 1 Peak Influence 916 | 20 122 52 . 56 . 916 269 . 358 Initial 269 | . . 39 . 56 . . 269 . . Average 84 | 3 33 3 . 6 . 275 71 . 238 Influence Increases 3079 | 60 513 92 150 150 . 1662 34 . 418 Destroy 0b10 Robot/C 1180 | . 220 40 80 . . 660 . . 180 Destroy 0b10 Robot/NC 260 | 60 75 40 . 20 . 55 . . 10 Destroy Leader 228 | . 46 10 10 . . 142 . . 20 Allied During Kill 226 | . . 2 . . . 16 . . 208 Trap Triggered on 0b10 10 | . . . . . . 10 . . . Successful Hack 84 | . 27 . . 15 . 42 . . . Select Force Hacks 150 | . 60 . . 90 . . . . . Disable Machine 480 | . 45 . . . . 435 . . . Destroy Structure 221 | . 40 . . 10 . 137 34 . . Lose Combat Pursuer 240 | . . . 60 15 . 165 . . . Influence Decreases 2721 | 60 411 194 32 268 . 891 805 . 60 Entered New Map 627 | . . 63 . 62 . . 502 . . Time Decay 1564 | 60 411 131 22 206 . 461 273 . . Lost Part 370 | . . . 10 . . 350 10 . . Lost Ally 160 | . . . . . . 80 20 . 60 Squads Dispatched 23 | . 2 . . . . 19 . 1 1 Investigation 8 | . 2 . . . . 5 . 1 . Extermination 4 | . . . . . . 4 . . . Reinforcement 6 | . . . . . . 5 . . 1 Assault 3 | . . . . . . 3 . . . Garrison 2 | . . . . . . 2 . . . Intercept . | . . . . . . . . . . Searches Triggered . | . . . . . . . . . . Construction Impeded 1 | . . . . . . 1 . . . Haulers Reinforced 1 | . . . . . . 1 . . . Active Scanning Responses . | . . . . . . . . . . Cargo Convoy Interrupts 1 | . . . . . . 1 . . . Stealth | -11 -10 -10 -10 -9 -9 -6 -6 -6 -6 --------- Run | Yrd Mat Min Sub Rec Scr Fac Was Fac DSF Distress Signals 5 | . 1 1 . . . 3 . . . Communications Jammed . | . . . . . . . . . . Distress Signals . | . . . . . . . . . . Times Spotted 120 | . 20 2 15 1 . 73 8 . 1 Peak Tracking Total 20 | . 3 2 3 1 . 20 6 . 1 Tactical Retreats 12 | . . . 3 1 . 7 1 . . Traps | -11 -10 -10 -10 -9 -9 -6 -6 -6 -6 ------- Run | Yrd Mat Min Sub Rec Scr Fac Was Fac DSF Traps Triggered 12 | . 6 . . . . 5 . . 1 Indirectly . | . . . . . . . . . . Trap Hack Attempts 2 | . . . . . . 2 . . . Triggered . | . . . . . . . . . . Disarmed . | . . . . . . . . . . Reprogrammed 1 | . . . . . . 1 . . . Reused 1 | . . . . . . 1 . . . Traps Extracted . | . . . . . . . . . . Installed 1 | . . . . . . 1 . . . Triggered 1 | . . . . . . 1 . . . Most Traps Carried 1 | . . . 1 . 1 1 . . . Machines | -11 -10 -10 -10 -9 -9 -6 -6 -6 -6 ---------- Run | Yrd Mat Min Sub Rec Scr Fac Was Fac DSF Machines Disabled 36 | . 3 . 4 . . 29 . . . Max in Single Turn 5 | . 1 . 3 . . 5 . . . Garrison Access 2 | . . . . . . 2 . . . Machines Repaired . | . . . . . . . . . . Machines Dismantled . | . . . . . . . . . . Machines Sabotaged . | . . . . . . . . . . Overloaded Fab Kills . | . . . . . . . . . . Hacking | -11 -10 -10 -10 -9 -9 -6 -6 -6 -6 --------- Run | Yrd Mat Min Sub Rec Scr Fac Was Fac DSF Machines Accessed 42 | . 9 1 4 8 8 11 . 1 . Terminals 14 | . 7 . . 3 . 3 . 1 . Fabricators 2 | . . . . . . 2 . . . Repair Stations 1 | . . . . . . 1 . . . Recycling Units 7 | . 2 . . 3 . 2 . . . Scanalyzers 1 | . . . . . . 1 . . . Garrison Access 2 | . . . . . . 2 . . . Total Hacks 166 | . 31 1 15 34 54 28 . 3 . Successful 138 | . 21 1 15 31 54 15 . 1 . Failed 27 | . 9 . . 3 . 13 . 2 . Catastrophic 5 | . 1 . . . . 4 . . . Database Lockouts 1 | . 1 . . . . . . . . Manual 35 | . 20 . . 5 . 10 . . . Terminals 45 | . 29 . . 5 . 8 . 3 . Fabricators 5 | . . . . . . 5 . . . Repair Stations 3 | . . . . . . 3 . . . Recycling Units 10 | . 2 . . 5 . 3 . . . Scanalyzers 3 | . . . . . . 3 . . . Garrison Access 6 | . . . . . . 6 . . . Terminal Hacks 111 | . 11 1 15 27 54 2 . 1 . Record 89 | . . . 12 24 53 . . . . Part Schematic 1 | . . . . . . 1 . . . Robot Analysis 3 | . 3 . . . . . . . . Prototype ID Bank 1 | . 1 . . . . . . . . Open Door 2 | . . 1 1 . . . . . . Open DSF 1 | . . . . . . . . 1 . Branch Access Points 1 | . . . . 1 . . . . . Terminal Index 1 | . . . . . . 1 . . . Locate Traps 1 | . 1 . . . . . . . . Security Status 1 | . . . . 1 . . . . . Surveillance Status 1 | . 1 . . . . . . . . Patrol Status 1 | . 1 . . . . . . . . Investigation Status 1 | . 1 . . . . . . . . Reinforcement Status 1 | . 1 . . . . . . . . Zone Layout 3 | . 2 . . 1 . . . . . Proto ID Catalog 2 | . . . 1 . 1 . . . . Release Object 1 | . . . 1 . . . . . . Fabricator Hacks 4 | . . . . . . 4 . . . Load Schematic 2 | . . . . . . 2 . . . Build 2 | . . . . . . 2 . . . Repair Station Hacks 1 | . . . . . . 1 . . . Scan Component 1 | . . . . . . 1 . . . Recycling Unit Hacks 1 | . . . . 1 . . . . . Retrieve Components 1 | . . . . 1 . . . . . Scanalyzer 2 | . . . . . . 2 . . . Insert Component 1 | . . . . . . 1 . . . Analyze 1 | . . . . . . 1 . . . Garrison Access Hacks 2 | . . . . . . 2 . . . Seal Access 2 | . . . . . . 2 . . . Unauthorized Hacks 17 | . 10 . . 3 . 4 . . . Terminals 9 | . 8 . . . . 1 . . . Botnet 3 | . 2 . . . . 1 . . . Skim 6 | . 6 . . . . . . . . Fabricators . | . . . . . . . . . . Repair Stations 1 | . . . . . . 1 . . . Mechanics 1 | . . . . . . 1 . . . Recycling Units 7 | . 2 . . 3 . 2 . . . Tunnel 5 | . 2 . . 3 . . . . . Fedlink 1 | . . . . . . 1 . . . Scrapoids 1 | . . . . . . 1 . . . Scanalyzers . | . . . . . . . . . . Garrison Access . | . . . . . . . . . . Data Cores Recovered . | . . . . . . . . . . Used . | . . . . . . . . . . Hacking Detections 17 | . 5 . . 2 . 9 . 1 . Full Trace Events 4 | . . . . . . 3 . 1 . Feedback Events . | . . . . . . . . . . Feedback Blocked . | . . . . . . . . . . Robot Schematics Acquired . | . . . . . . . . . . Robots Built . | . . . . . . . . . . Authchips . | . . . . . . . . . . Time . | . . . . . . . . . . Total Robot Build Rating . | . . . . . . . . . . Part Schematics Acquired 11 | . . . . . . 11 . . . Parts Built 3 | . . . . . . 3 . . . Authchips . | . . . . . . . . . . Time 190 | . . . . . . 190 . . . Total Part Build Rating 16 | . . . . . . 16 . . . Parts Repaired . | . . . . . . . . . . Time . | . . . . . . . . . . Parts Recycled . | . . . . . . . . . . Recycled Matter . | . . . . . . . . . . Retrieved Matter . | . . . . . . . . . . Retrieved Components 3 | . . . . 3 . . . . . Parts Scanalyzed 1 | . . . . . . 1 . . . Part Schematics Acquired 1 | . . . . . . 1 . . . Parts Damaged . | . . . . . . . . . . Bothacking | -11 -10 -10 -10 -9 -9 -6 -6 -6 -6 ------------ Run | Yrd Mat Min Sub Rec Scr Fac Was Fac DSF Used RIF Installer . | . . . . . . . . . . Robots Hacked 2 | . . . . . 1 1 . . . Non-combat 1 | . . . . . . 1 . . . Combat 1 | . . . . . 1 . . . . Robot Hacks Applied 2 | . . . . . 1 1 . . . parse_system 2 | . . . . . 1 1 . . . Relay Couplers Released . | . . . . . . . . . . Fabnet Peak Effective % . | . . . . . . . . . . Robots Rewired . | . . . . . . . . . . Allies Hacked . | . . . . . . . . . . Hacks Repelled . | . . . . . . . . . . Allies | -11 -10 -10 -10 -9 -9 -6 -6 -6 -6 -------- Run | Yrd Mat Min Sub Rec Scr Fac Was Fac DSF Total Allies 28 | . . 3 . . . 5 20 . . Largest Group 19 | . . 3 1 . . 5 19 13 13 Highest-Rated Group 702 | . . 40 8 . . 143 702 501 501 Highest-Rated Ally 50 | . . 16 8 . . 31 50 46 46 Total Orders . | . . . . . . . . . . Ally Attacks 237 | . . 6 1 . . 37 143 . 50 Total Damage 6579 | . . 71 11 . . 582 4605 . 1310 Kills 23 | . . . . . . 3 10 . 10 Allies Corrupted 3 | . . . . . . 1 2 . . Allies Melted . | . . . . . . . . . . Intel | -11 -10 -10 -10 -9 -9 -6 -6 -6 -6 ------- Run | Yrd Mat Min Sub Rec Scr Fac Was Fac DSF Active Infowar (turns) 6269 | 44 1196 39 2879 . 582 1270 58 13 188 Optics 47 | . . . . . . . . . 47 Sensors 536 | . . . . . . 536 . . . IFF 37 | . . . . . . 36 . . 1 Terrain 211 | . . . . . . . 57 13 141 Structural 829 | . . . 146 . . 472 58 13 140 Seismic 5196 | 44 1196 39 2733 . 582 602 . . . Cloaking 329 | . . . . . . 329 . . . Robot Analysis Total 3 | . 3 . . . . . . . . Derelict Logs Recovered 7 | . . 2 1 . 4 . . . . Drone Launches . | . . . . . . . . . . Drone Recoveries . | . . . . . . . . . . Exploration | -11 -10 -10 -10 -9 -9 -6 -6 -6 -6 ------------- Run | Yrd Mat Min Sub Rec Scr Fac Was Fac DSF Turns Passed 18147 | 279 1822 1643 5961 1926 3198 1946 1069 13 290 Spaces Moved 8558 | 132 780 674 2045 797 2408 1010 556 7 149 Core 488 | 4 1 . 262 . . 82 139 . . Treads 2746 | 128 779 674 467 95 . 79 368 7 149 Legs . | . . . . . . . . . . Wheels 5275 | . . . 1316 702 2408 849 . . . Hover 15 | . . . . . . . 15 . . Flight 34 | . . . . . . . 34 . . Fastest Speed 34 | 50 160 160 110 130 115 50 34 160 160 Average Speed 185 | 156 199 229 268 193 127 128 155 160 162 Slowest Speed 850 | 160 850 240 850 660 190 480 240 160 166 Overloaded Moves . | . . . . . . . . . . Propulsion Burnouts . | . . . . . . . . . . Robots Hopped . | . . . . . . . . . . Potential Cave-ins . | . . . . . . . . . . Cave-ins Triggered . | . . . . . . . . . . Exploration Rate (%) 65 | 5 98 99 67 86 96 23 96 1 83 Regions Visited 9 Branch Regions 4 Pre-discovered Areas 8 | . 2 . . 3 3 . . . . Known Exits Taken 2 | . 1 . . . . . . 1 . Unknown Exits Taken 5 | 1 . 1 1 1 1 . . . . Scrap Searched 25 | . . 2 11 . 12 . . . . Spaces Dug 69 | . 19 . 4 8 . 38 . . . Terrain Destroyed 314 | . 45 . 122 8 . 139 . . . Melee 27 | . . . 4 8 . 15 . . . Projectile 12 | . . . . . . 12 . . . AOE 275 | . 45 . 118 . . 112 . . . Terrain Rammed . | . . . . . . . . . . Walls Destroyed . | . . . . . . . . . . Machines Disabled . | . . . . . . . . . . Actions | -11 -10 -10 -10 -9 -9 -6 -6 -6 -6 --------- Run | Yrd Mat Min Sub Rec Scr Fac Was Fac DSF Total 10281 | 161 925 732 2367 1161 2545 1441 753 9 187 Wait 928 | . 42 25 150 329 82 136 159 3 2 Move 8550 | 131 779 673 2044 796 2407 1010 555 6 149 Hop . | . . . . . . . . . . Pick Up 133 | 3 17 7 23 8 29 35 4 . 7 Fast Attach 70 | 7 8 . 10 2 3 16 15 . 9 Attach 41 | . . . 4 . 1 31 5 . . Detach 8 | . . . . . . 3 1 . 4 Swap 75 | . 9 4 26 4 2 28 1 . 1 Drop 100 | . 10 4 18 5 20 25 11 . 7 Fire 254 | 20 60 19 47 . . 105 . . 3 Melee 113 | . . . 41 17 1 47 2 . 5 Ram 1 | . . . . . . 1 . . . Kick . | . . . . . . . . . . Crush 1 | . . . . . . 1 . . . Escape Stasis . | . . . . . . . . . . Rewire . | . . . . . . . . . . Trap 3 | . . . . . . 3 . . . Miscellaneous 4 | . . . 4 . . . . . . Route ------- -11/Scrapyard -10/Materials (discovered 5 exits: *Mat x3 / *Min / *Sub) -10/Mines (discovered 4 exits: *Mat x2 / [*Exi] / *Sub) -10/Subcaves (discovered 2 exits: [*Mat] / *Rec) -9/Recycling (discovered 2 exits: *Fac / *Scr) -9/Scraptown (discovered 2 exits: *Fac x2) -6/Factory -6/Waste -6/Factory -6/DSF (discovered 1 exit: [*Fac]) History --------- Turn | Location | Event 8 | -11/Scrapyard | Discovered new exit (range 15) 280 | -11/Scrapyard | Entered Materials 300 | -10/Materials | Build established: Mutant 443 | -10/Materials | Discovered new exit (range 4) 506 | -10/Materials | Discovered new exit (range 15) 973 | -10/Materials | Central database locked down 973 | -10/Materials | Discovered new exit (range 14) 1321 | -10/Materials | Identified exit to Materials 1372 | -10/Materials | Learned Storage trap positions 1415 | -10/Materials | Learned Storage security intel 1446 | -10/Materials | Learned location of 1 exit from Recycling 1466 | -10/Materials | Identified exit to Mines 1466 | -10/Materials | Learned location of 1 exit from Materials 1524 | -10/Materials | Learned Storage trap positions 1561 | -10/Materials | Loaded intel: 22 non-interactive machine locations 2102 | -10/Materials | Entered Mines 2245 | -10/Mines | Met a Derelict who couldn't figure out how to use a Trap Extractor 2483 | -10/Mines | Assisted by bots powering up and referring to "LRC-V3" 2524 | -10/Mines | Deemed a non-threat by the Exiles lab entrance 2524 | -10/Mines | Discovered new exit (range 5) 2854 | -10/Mines | Discovered exit to Materials (range 5) 2969 | -10/Mines | Discovered new exit (range 6) 3119 | -10/Mines | Learned Materials non-interactive machine intel 3140 | -10/Mines | Learned Materials emergency access door positions 3745 | -10/Mines | Entered Subcaves 3745 | -10/Subcaves | Accompanied by 1 ally 3746 | -10/Subcaves | Approached by a straggling Scientist 4132 | -10/Subcaves | A swath of the cavern ceiling suddenly collapsed 4385 | -10/Subcaves | Build established: Scavenger-Mutant 4556 | -10/Subcaves | Visited Clippyterm 4565 | -10/Subcaves | Learned Factory garrison access intel 4700 | -10/Subcaves | Ambushed by Subdweller buried in earth 4743 | -10/Subcaves | Lost 4 parts (1p2n1w) 4999 | -10/Subcaves | Build established: Mutant 6685 | -10/Subcaves | Core integrity fell below 50% 7057 | -10/Subcaves | Disturbed a concealed Subdweller 7418 | -10/Subcaves | Build established: Subdweller-Mutant 7828 | -10/Subcaves | Discovered new exit (range 16) 8107 | -10/Subcaves | Shifting Twisted Machinery released Shrapnel Trap 8116 | -10/Subcaves | Discovered new exit (range 16) 8121 | -10/Subcaves | Shifting Twisted Machinery released Battle Cannon 8123 | -10/Subcaves | Shifting Twisted Machinery released Sub. Monowheel 8123 | -10/Subcaves | Shifting Twisted Machinery released Mak. Laser 8247 | -10/Subcaves | Ambushed by Subdweller buried in earth 8250 | -10/Subcaves | Core integrity fell below 20% 8396 | -10/Subcaves | Visited 4L-MR0's lab 8406 | -10/Subcaves | Found Meta Core 8493 | -10/Subcaves | Attached Meta Core, gained temporary slots: Propulsion, Utility, Weapon 8765 | -10/Subcaves | Found SUBCON Basin 9706 | -10/Subcaves | Entered Recycling 9707 | -9/Recycling | Identified exit to Factory 10830 | -9/Recycling | Build established: Mutant 11465 | -9/Recycling | Scanned before Scraplab entrance 11483 | -9/Recycling | Entered Scraplab 11628 | -9/Recycling | Discovered new exit (range 3) 11632 | -9/Recycling | Entered Scraptown 12042 | -9/Scraptown | Discovered new exit (range 5) 12165 | -9/Scraptown | Scanned Subdweller tech in exchange for log data 12168 | -9/Scraptown | Learned location of 1 exit from Research 12172 | -9/Scraptown | Learned location of 2 exits from Research 12249 | -9/Scraptown | Visited Awakened 12280 | -9/Scraptown | Visited CR-KLE's Repair Center 12297 | -9/Scraptown | Heard Great Nut preacher, LISTEN AND RECITE! 12303 | -9/Scraptown | Visited UFD Registry 12303 | -9/Scraptown | Registered with UFD as "Novaglider" 12351 | -9/Scraptown | Visited Bundlers 12422 | -9/Scraptown | Visited Shadow of the Wyrm 12442 | -9/Scraptown | Visited Cyclists 12458 | -9/Scraptown | Entered Cyclist Reading Room 12463 | -9/Scraptown | Learned location of Zion (-6) 12723 | -9/Scraptown | Visited Fellowship of the Rings 12743 | -9/Scraptown | Visited SPCMW 12828 | -9/Scraptown | Visited Chapter 10 12870 | -9/Scraptown | Visited Science Testing Area 12888 | -9/Scraptown | Visited DA-N13 Charitable Foundation 12900 | -9/Scraptown | Found DCF Scrap (26 items) 12921 | -9/Scraptown | Visited Junk Repository 12953 | -9/Scraptown | Visited Infowarlord's Domain 12977 | -9/Scraptown | Visited Research Penetration Think Tank 12999 | -9/Scraptown | Visited Science Guys 13044 | -9/Scraptown | Visited Junk Repository 13086 | -9/Scraptown | Visited Derelict Rescue Squad 13120 | -9/Scraptown | Visited Curators Association 13352 | -9/Scraptown | Delivered Scrap Shield to a Scientist 13553 | -9/Scraptown | Found DRS Beacon 14312 | -9/Scraptown | Found Exp. Terrain Scanner 14768 | -9/Scraptown | Met Optimus 14768 | -9/Scraptown | Accepted into 0bPrime 14827 | -9/Scraptown | Discovered new exit (range 3) 14830 | -9/Scraptown | Entered Factory 14830 | -6/Factory | Evolved 8 slots: Power x1, Propulsion x3, Utility x4 14831 | -6/Factory | Loaded intel: 4 garrison access locations 14860 | -6/Factory | Found Hvy. Reactive Plating 14863 | -6/Factory | Found Hvy. Reactive Plating 14865 | -6/Factory | Found Hvy. Reactive Plating 14868 | -6/Factory | Found Hvy. Reactive Plating 15135 | -6/Factory | Build established: Derelict-Mutant 15370 | -6/Factory | Loaded intel: 8 recycling unit locations 15378 | -6/Factory | Tech Extrapolator generated special schematic: Deep Structural Scanner 15584 | -6/Factory | Fabricated Deep Structural Scanner? 15709 | -6/Factory | Garrison activated, responded to threat 15796 | -6/Factory | Lost 8 parts (5n2u1w) 15854 | -6/Factory | System corruption reached 10% 15996 | -6/Factory | Cargo convoy interrupted 16000 | -6/Factory | Discovered new exit (range 15) 16148 | -6/Factory | Lost 4 parts (1n2u1w) 16230 | -6/Factory | First assault squad dispatched 16238 | -6/Factory | Scrapoids reinforcements arrived? 16431 | -6/Factory | Found Hvy. Reactive Plating 16438 | -6/Factory | Found Hvy. Reactive Plating 16655 | -6/Factory | Fabricated Arm. Medium Treads (x2) 16666 | -6/Factory | Lost 3 allies 16741 | -6/Factory | Core integrity fell below 50% 16746 | -6/Factory | System corruption reached 30% 16772 | -6/Factory | Core integrity fell below 20% 16776 | -6/Factory | Sucked down chute 16776 | -6/Factory | Entered Waste 16777 | -6/Waste | Met a frightened Derelict 16786 | -6/Waste | Spotted C-40 Crusher 16789 | -6/Waste | Spotted C-40 Crusher 16792 | -6/Waste | Lost 19 parts (2p10n6u1w) 16795 | -6/Waste | Spotted C-40 Crusher 16796 | -6/Waste | Spotted C-40 Crusher 16805 | -6/Waste | Crushed by Compactor (1 part destroyed) 16816 | -6/Waste | Spotted C-40 Crusher 16818 | -6/Waste | Spotted C-40 Crusher 16830 | -6/Waste | Warlord forces began an assault 16868 | -6/Waste | Allies destroyed C-40 Crusher 16881 | -6/Waste | Allies destroyed C-40 Crusher 16887 | -6/Waste | Allies destroyed C-40 Crusher 16918 | -6/Waste | Found Damper Plating 17027 | -6/Waste | Discovered new exit (range 11) 17214 | -6/Waste | Build established: Scavenger-Mutant 17592 | -6/Waste | Found Prototype Device 17592 | -6/Waste | Identified System Purifier 17845 | -6/Waste | Entered Factory 17845 | -6/Factory | Accompanied by 13 allies 17853 | -6/Factory | Identified exit to DSF 17858 | -6/Factory | Entered DSF 17858 | -6/DSF | Accompanied by 13 allies 17893 | -6/DSF | Additional patrols routed to DSF 17984 | -6/DSF | Discovered new exit (range 14) 18029 | -6/DSF | Sterilization system engaged 18049 | -6/DSF | Ambient heat levels rising (+10) 18064 | -6/DSF | Ambient heat levels rising (+10) 18079 | -6/DSF | Ambient heat levels rising (+10) 18094 | -6/DSF | Ambient heat levels rising (+10) 18109 | -6/DSF | Ambient heat levels rising (+10) 18124 | -6/DSF | Ambient heat levels rising (+10) 18139 | -6/DSF | Ambient heat levels rising (+10) 18149 | -6/DSF | Core destroyed Last Messages --------------- 18135_ Overheating: System interference. 18135_ Enh. Optical Array temporarily disabled. 18135_ Cld. Proton Cannon temporarily disabled. 18136_ N0-69R(m) repairs BZ-K0Z(m). 18139_ ALERT: Ambient heat levels +10. 18140_ Overheating: Cld. Proton Cannon damaged (-50). 18140_ Overheating: Gravity Flail damaged (-60). 18140_ Overheating: Antimatter Reactor damaged (-28). 18140_ Overheating: Authchip [Armor] damaged (-4). 18142_ Overheating: Matter decay (-69). 18143_ N0-69R(m) heat damages Broken Wheel. 18144_ Overheating: Rnf. Deuterium Engine damaged (-59). 18144_ BZ-K0Z(m) heat damages core (-12). 18145_ Overheating: Matter decay (-55). 18145_ BZ-K0Z(m) heat damages core (-11). 18147_ Overheating: Energy bleed (-44). 18148_ BZ-K0Z(m) heat damages core (-18). 18148_ N0-69R(m) heat short circuits Wheel. 18149_ Overheating: Core damaged (-136). [Achievement: I Was Wrong!] Map ----- +----------------------------------------------------+ | ?#######& &&## ##### ] = ####???#? | | ?#?#####& &&## ##### ] = ####????? | | ????##### #### ]!##### ######?????# | | ??###### &&### ! ##!! !!########?= | | ???##### &&##### ##!! !!######## = | | ???##### &&##### ##!! !!######## = | | ???###### #######+#### ############ | | ???####!! ## #!!!### ###!!!#!!!## | | ???####!! #" "!!!##% * ##!!!#!!!## | | ???####!! === | | ???####!! ! | | ???####! ! | | ???#### % ## #!!!##% ##!!!# ## | | ??##### =## #!!!### ###! !# ## | | ???######=%############ ####/####### | | ?#?#####! *!!########!! ## #####! | | ???#####!*[!!########!! / #####!! | | ???#####!=%!!########!![ ]]## !!###!! | | ????#####!=############=% #####!!#?### | | ????####! ! ########!!%!= ######?#!! | | ?#??####! ! ########!!*%= ####???#!! | | ????##### ##########!![ ########## | | ????#####[ ###!!#!!!###% ###!!!# ###% | | ????###""% ##!!#!!!### ###!!!# ##% | | ?#?#""""" g gg gg mm ! | | #????##""< @ g g% | | ??????#"""""## #!!!#!! #!!!#!!##"" | | ???????""""??########!! #########"" | | ????????????????????##########??????##" | | ???????#???????#????#???????????#????#" | | ??????????"?????????????????????#????#" | | ??????????????????????????#??#??#????## | | ??????????#?#?????????#???#??????????#? | | #?????????#???????????????????????????? | | ?????????????????#??????????????????#?? | | ?????????????#???????????????????????#? | | | | | | | | | | | | | | | | | | | | | | | | | | | | | +----------------------------------------------------+ Best States ------------- Heat Dissipation 56 Coolant Potential 50 Energy Generation 34 Energy Capacity 865 Matter Stores 300 Matter Capacity 300 Sight Range 22 Robot Scan Range 16 Terrain Scan Range 30 Terrain Scan Density 10 Cloak Strength 2 Corruption Block 1 Armor Coverage 2050 Resistance: KI 40 Resistance: EM 90 Utility Shielding 90 Evasion (%) 63 Core Analysis 6 Recoil Reduction 5 Offensive Hacking 12 Defensive Hacking 10 Authchip Count 1 Item Schematics ----------------- CPS Tube | -6/Factory | Scanalyzed Deep Structural Scanner | -6/Factory | Extrapolated Mak. Kinetic Plating | -6/Factory | Extrapolated Mak. Terrain Scanner | -6/Factory | Extrapolated Mak. Coolant Network | -6/Factory | Extrapolated Humpback | -6/Factory | Extrapolated Beamcaster | -6/Factory | Extrapolated 0b10 Decoder Chip [Generic] | -6/Factory | Extrapolated 0b10 Decoder Chip [Scout] | -6/Factory | Extrapolated 0b10 Decoder Chip [Skirmisher] | -6/Factory | Extrapolated Arm. Medium Treads | -6/Factory | Hacked Robot Schematics ------------------ None Fabricated ------------ Deep Structural Scanner | x1 | -6/Factory Arm. Medium Treads | x2 | -6/Factory Repaired ---------- Nothing Alien Tech Used ----------------- None Achievements -------------- I Was Wrong! Challenges ------------ None Game ------ Seed EncryptedFusionWarhead Manual? 0 Play Time 02:09:16 Cumulative 294.5 hours Start 2025.06.09 @ 20:12:58 End 2025.06.09 @ 23:23:22 Sessions 5 Manual Loads 0 Difficulty Rogue Special Mode None Game No. 151 Rogue 151 Adventurer 0 Explorer 0 Win Type - Total 1 Types 0/0/0/0/1/0/0/0/0/0 Lore% 75 Gallery% 75 Achievement% 64 Wizard Run 0 Options --------- Layout 0 ASCII 0 Keyboard 0 Movement Mouse Keybinds 0 Fullscreen 1 Font 24/Smallcaps Map View 183x50 Zoom Use 0% Tactical HUD 1 Map Filters NONE Filters NONE Steam 0 RUN: 34e90ec6-86cb-4daa-bae9-c5c7ee704f19